bitfinex-derivatives/quotes_SOLF0:USTF0_20251117
["timestamp","ask_amount","ask_price","bid_price","bid_amount"]
[1763404624767,0.05074244,130.84,130.75,3.39]
[1763404624768,3.36858947,130.8,130.75,3.39]
[1763404625068,3.36858947,130.8,130.72,11.94107568]
[1763404625272,0.05034143,130.77,130.73,3.39]
[1763404625668,0.05034143,130.77,130.7,41.0]
[1763404625669,3.36034143,130.77,130.7,3.39]
[1763404625869,3.36034143,130.77,130.71,6.8915]
[1763404626070,0.05034143,130.77,130.7,3.39]
[1763404626570,3.36034143,130.77,130.69,91.66]
[1763404626765,0.04816458,130.74,130.69,95.05]
[1763404626975,0.04816458,130.74,130.7,3.39]
[1763404627268,0.04816458,130.74,130.69,91.66]
[1763404627576,0.04816458,130.74,130.67,3.39]
[1763404627867,0.04816458,130.74,130.69,8.55107568]
[1763404628069,3.31,130.82,130.7,3.39]
[1763404628275,3.31,130.8,130.7,3.39]
[1763404628470,5.73665304,130.82,130.75,8.55107568]
[1763404628673,6.99419028,130.87,130.8,3.39]
[1763404628875,3.31,130.92,130.82,3.39]
[1763404629069,0.04941357,130.85,130.83,8.55107568]
[1763404629269,3.31,130.91,130.82,3.39]
[1763404629470,3.31,130.91,130.82,11.94107568]
[1763404629663,5.73732882,130.9,130.83,12.88]
[1763404629868,3.31,130.91,130.81,18.14]
[1763404630072,3.31,130.89,130.8,8.55107568]
[1763404630267,3.35976866,130.86,130.83,0.05026468]
[1763404630466,0.04950589,130.86,130.83,0.04856791]
[1763404630874,0.04950589,130.86,130.83,8.59964359]
[1763404631266,6.99419028,130.94,130.83,8.59964359]
[1763404631569,3.31,130.95,130.83,8.55107568]
[1763404631882,5.73650894,130.96,130.9,3.2]
[1763404632174,3.31,131.03,130.92,11.75107568]
[1763404632374,0.05801547,130.99,130.96,0.05805922]
[1763404632580,0.05801547,130.99,130.96,3.25805922]
[1763404633078,5.73703325,131.05,130.96,3.25805922]
[1763404633278,10.30419028,131.11,130.99,3.2]
[1763404633484,8.55107568,131.12,130.99,3.2]
[1763404633485,9.04578118,131.1,130.99,3.2]
[1763404633772,3.31,131.06,130.94,8.55107568]
[1763404633977,3.31,131.03,130.91,8.55107568]
[1763404634172,6.99419028,131.04,130.96,0.05459599]
[1763404634173,0.05749956,130.98,130.96,0.05459599]
[1763404634481,0.04881051,130.98,130.96,0.05840428]
[1763404634775,0.04881051,130.98,130.96,3.25840428]
[1763404635979,0.04881051,130.98,130.96,0.05840428]
[1763404636383,3.35881051,130.98,130.96,0.05840428]
[1763404637077,0.04881051,130.98,130.96,0.05840428]
[1763404637472,3.35881051,130.98,130.96,0.05840428]
[1763404637668,0.04881051,130.98,130.96,0.05840428]
[1763404638583,3.50881051,130.98,130.96,0.05840428]
[1763404638768,3.46,130.96,130.86,3.19]
[1763404639667,0.0578538,130.92,130.9,0.0553175]
[1763404641780,3.5178538,130.92,130.9,0.0553175]
[1763404642279,0.0578538,130.92,130.9,0.0553175]
[1763404642782,0.0578538,130.92,130.9,3.2453175]
[1763404642987,10.45419028,131.04,130.92,3.19]
[1763404643182,10.45419028,131.04,130.91,40.82]
[1763404643183,5.73651712,131.03,130.94,3.19]
[1763404643387,5.73651712,131.02,130.94,3.19]
[1763404643683,5.73651712,131.01,130.94,3.19]
[1763404643885,0.05298095,130.99,130.96,3.24566691]
[1763404644084,0.05298095,130.99,130.91,3.19]
[1763404644377,3.46,130.97,130.96,0.05523977]
[1763404644782,0.04907479,130.98,130.96,0.05523977]
[1763404645581,0.04907479,130.98,130.96,3.24523977]
[1763404646785,10.45419028,131.08,130.97,3.19]
[1763404646991,9.19784133,131.07,130.97,3.19]
[1763404647176,5.73784133,131.06,130.98,3.19]
[1763404647381,5.73784133,131.05,130.98,3.19]
[1763404647672,3.46,131.06,131.0,0.053576]
[1763404647877,0.05632052,131.03,131.0,0.053576]
[1763404648078,0.05632052,131.03,131.0,3.243576]
[1763404648487,5.73726976,131.07,131.0,3.243576]
[1763404648680,3.46,131.1,131.0,10.0661]
[1763404648979,5.73780918,131.09,131.0,10.0661]
[1763404649174,9.19780918,131.08,131.0,3.19]
[1763404649379,3.46,131.06,130.96,44.27]
[1763404649584,21.43513541,131.12,131.0,0.05762959]
[1763404649585,0.05367589,131.02,131.0,0.05762959]
[1763404649786,0.05423037,131.02,131.0,0.05668525]
[1763404650981,0.05423037,131.02,131.0,3.24668525]
[1763404651687,0.05423037,131.02,131.0,0.05668525]
[1763404652185,0.05423037,131.02,131.0,3.24668525]
[1763404652885,0.05423037,131.02,131.0,0.05668525]
[1763404653086,3.56423037,131.02,131.0,0.05668525]
[1763404653276,0.05423037,131.02,131.0,0.05668525]
[1763404653480,3.56423037,131.02,131.0,0.05668525]
[1763404654687,3.51,131.01,130.92,3.19]
[1763404654883,3.51,131.0,130.92,3.19]
[1763404655388,5.64126352,130.99,130.87,3.19]
[1763404655592,0.05799388,130.94,130.92,0.0553143]
[1763404655786,3.55821105,130.94,130.92,0.04844041]
[1763404655996,3.51,130.93,130.83,3.19]
[1763404656291,3.51,130.91,130.83,3.19]
[1763404656488,3.51,130.9,130.83,3.19]
[1763404656886,0.04820716,130.88,130.85,0.04830677]
[1763404657192,3.55820716,130.88,130.75,3.19]
[1763404657390,3.51,130.86,130.75,3.19]
[1763404657698,9.15126352,130.85,130.75,3.19]
[1763404657889,9.15126352,130.84,130.75,3.19]
[1763404658085,9.15126352,130.84,130.74,8.57180519]
[1763404658086,3.51,130.84,130.71,11.81180519]
[1763404658293,3.51,130.8,130.78,0.04858442]
[1763404659291,3.51,130.79,130.69,91.64]
[1763404659486,3.51,130.78,130.69,91.64]
[1763404660191,0.04844496,130.75,130.72,0.0504414]
[1763404660495,0.04844496,130.75,130.72,3.3404414]
[1763404660695,3.51,130.81,130.72,3.3404414]
[1763404660896,3.51,130.81,130.72,3.29]
[1763404661193,3.51,130.85,130.73,3.29]
[1763404661395,3.51,130.84,130.73,3.29]
[1763404661595,0.04951273,130.8,130.77,0.05340017]
[1763404662093,3.55951273,130.8,130.77,0.05340017]
[1763404663199,0.04951273,130.8,130.77,0.05340017]
[1763404664000,0.04951273,130.8,130.77,3.34340017]
[1763404665288,0.04951273,130.8,130.77,0.05340017]
[1763404665488,3.55951273,130.8,130.77,0.05340017]
[1763404666595,0.04951273,130.8,130.77,3.34340017]
[1763404666800,3.51,130.85,130.77,3.34340017]
[1763404666990,3.51,130.85,130.77,3.29]
[1763404667386,3.51,130.85,130.75,13.4392571]
[1763404667387,3.51,130.9,130.79,3.29]
[1763404667895,0.05584265,130.86,130.83,0.05756384]
[1763404668103,3.56584265,130.86,130.83,0.05756384]
[1763404668987,3.56584265,130.86,130.76,18.6]
[1763404669187,3.51,130.86,130.76,18.6]
[1763404669601,3.51,130.85,130.76,18.6]
[1763404669993,3.55877549,130.82,130.79,0.05473822]
[1763404671399,0.04877549,130.82,130.79,0.05473822]
[1763404671695,3.55877549,130.82,130.7,29.7]
[1763404672002,3.51,130.82,130.71,3.29]
[1763404672304,3.51,130.81,130.71,3.29]
[1763404672697,0.05808542,130.77,130.75,0.04958905]
[1763404672997,3.56808542,130.77,130.75,0.04958905]
[1763404673807,3.51,130.75,130.66,3.29]
[1763404674404,3.51,130.75,130.64,3.29]
[1763404674798,0.05733101,130.71,130.68,0.04936078]
[1763404675101,0.05733101,130.71,130.68,3.33936078]
[1763404675497,3.56733101,130.71,130.68,0.04936078]
[1763404679303,39.8592571,130.69,130.59,1.33190447]
[1763404679500,0.05733101,130.71,130.52,3.23716489]
[1763404679501,3.51,130.62,130.52,3.23716489]
[1763404679809,3.51,130.62,130.53,3.45]
[1763404680307,3.56833004,130.59,130.52,3.23716489]
[1763404680802,0.05833004,130.59,130.52,6.68716489]
[1763404681307,3.56833004,130.59,130.52,3.23716489]
[1763404681694,3.56833004,130.59,130.52,6.68716489]
[1763404681695,0.05833004,130.59,130.52,6.68716489]
[1763404682201,20.35773154,130.68,130.52,6.68716489]
[1763404682202,3.51,130.68,130.56,3.45]
[1763404682503,3.51,130.67,130.57,3.45]
[1763404682697,3.19,130.66,130.53,3.19]
[1763404683092,22.77534388,130.68,130.54,3.19]
[1763404683297,3.19,130.75,130.61,3.19]
[1763404683495,3.19,130.74,130.63,3.19]
[1763404683701,3.19,130.73,130.63,3.19]
[1763404684204,3.19,130.73,130.67,0.04980772]
[1763404684397,0.05096112,130.69,130.67,0.04980772]
[1763404684598,0.05096112,130.69,130.67,3.23980772]
[1763404684797,0.05096112,130.69,130.67,0.04980772]
[1763404685106,3.24096112,130.69,130.67,0.04980772]
[1763404685504,3.24096112,130.69,130.59,44.65]
[1763404685708,3.19,130.69,130.59,44.65]
[1763404686016,3.19,130.69,130.6,3.19]
[1763404686203,3.19,130.71,130.6,3.19]
[1763404686609,0.04885975,130.67,130.64,0.04907427]
[1763404686805,26.44703052,130.75,130.64,3.23907427]
[1763404687102,3.19,130.82,130.67,3.19]
[1763404687299,3.19,130.82,130.66,13.4392571]
[1763404687300,3.19,130.81,130.7,3.19]
[1763404687897,0.04875114,130.77,130.74,3.24008795]
[1763404688096,0.05025789,130.77,130.74,3.24241567]
[1763404688703,3.19,130.85,130.75,3.19]
[1763404688914,5.58790152,130.87,130.75,3.19]
[1763404688915,5.5886835,130.87,130.76,3.19]
[1763404689210,3.19,130.89,130.76,3.19]
[1763404689608,3.19,130.88,130.76,3.19]
[1763404689814,3.19,130.86,130.72,3.19]
[1763404690114,0.05869983,130.83,130.81,0.0564024]
[1763404690318,0.05680163,130.83,130.81,0.05035864]
[1763404691116,0.05680163,130.83,130.81,3.24035864]
[1763404691713,3.24680163,130.83,130.72,3.19]
[1763404691913,3.19,130.82,130.71,36.8]
[1763404692109,3.19,130.82,130.68,3.19]
[1763404692110,3.19,130.8,130.68,3.19]
[1763404692412,8.7786835,130.8,130.68,3.19]
[1763404692618,3.19,130.8,130.68,3.19]
[1763404692808,0.05065212,130.75,130.73,0.05591687]
[1763404693113,0.05566577,130.75,130.73,3.24591687]
[1763404693315,9.32558705,130.87,130.74,3.19]
[1763404693316,3.19,130.83,130.74,3.19]
[1763404693519,5.5886835,130.82,130.74,3.19]
[1763404693716,3.19,130.83,130.74,3.19]
[1763404694018,5.5886835,130.84,130.74,3.19]
[1763404694315,6.91847444,130.87,130.78,0.05352767]
[1763404694316,0.05632223,130.8,130.78,0.05352767]
[1763404694509,0.05491713,130.8,130.78,0.05548831]
[1763404695422,3.24491713,130.8,130.78,0.05548831]
[1763404696312,5.6327917,130.79,130.78,0.05548831]
[1763404696815,5.63356127,130.79,130.78,0.05548831]
[1763404697012,0.05491713,130.8,130.78,0.05548831]
[1763404697417,9.09979224,130.79,130.69,3.29]
[1763404697615,3.46,130.77,130.69,3.29]
[1763404697818,5.63671116,130.76,130.69,3.29]
[1763404698114,9.09596045,130.75,130.65,3.29]
[1763404698317,6.91847444,130.76,130.65,3.29]
[1763404698318,16.01443489,130.74,130.65,3.29]
[1763404698521,5.63596045,130.73,130.65,3.29]
[1763404698715,0.04869286,130.71,130.68,0.05334636]
[1763404699017,0.04869286,130.71,130.68,3.34334636]
[1763404700206,5.66623231,130.7,130.68,3.34334636]
[1763404700523,6.91847444,130.75,130.69,3.29]
[1763404700719,6.91847444,130.73,130.65,3.29]
[1763404701029,5.66354476,130.72,130.65,28.47]
[1763404701215,5.66354476,130.71,130.65,28.47]
[1763404701416,0.0587435,130.69,130.67,3.34398333]
[1763404701717,5.66692483,130.68,130.67,0.05398333]
[1763404701916,0.0587435,130.69,130.67,3.34398333]
[1763404702113,5.66817276,130.68,130.67,3.34398333]
[1763404702315,5.66817276,130.68,130.67,0.05398333]
[1763404703111,5.66817276,130.68,130.67,3.34398333]
[1763404703317,5.66817276,130.68,130.67,0.05398333]
[1763404704922,12.5866472,130.68,130.67,0.05398333]
[1763404705124,5.66817276,130.68,130.67,0.05398333]
[1763404705322,5.78558705,130.73,130.67,0.05398333]
[1763404705518,17.44838057,130.84,130.7,13.4392571]
[1763404705815,40.66017398,130.89,130.7,13.4392571]
[1763404705816,13.98838057,130.85,130.73,13.4392571]
[1763404706017,17.44838057,130.89,130.76,13.4392571]
[1763404706217,17.44838057,130.89,130.73,22.67018373]
[1763404706218,1.90159097,130.88,130.73,22.67018373]
[1763404706426,3.46,130.95,130.82,13.4392571]
[1763404706623,3.46,130.95,130.83,13.4392571]
[1763404706821,3.46,130.95,130.79,37.79689464]
[1763404707012,3.46,130.95,130.8,31.4]
[1763404707216,3.46,130.95,130.8,69.19689464]
[1763404708027,0.04885629,130.89,130.86,0.05820121]
[1763404708327,0.05021315,130.89,130.86,0.0585278]
[1763404708717,3.46,130.99,130.86,0.0585278]
[1763404708919,3.46,130.99,130.84,37.79689464]
[1763404709528,3.46,130.99,130.85,41.62]
[1763404709729,0.05248903,130.93,130.91,0.05453748]
[1763404709924,0.05608956,130.93,130.91,0.05770891]
[1763404710118,3.51608956,130.93,130.91,0.05770891]
[1763404710519,0.05608956,130.93,130.91,0.05770891]
[1763404710719,3.46,131.01,130.91,0.05770891]
[1763404710720,3.46,131.05,130.91,0.05770891]
[1763404710920,3.46,131.05,130.92,37.79689464]
[1763404711218,3.46,131.05,130.92,59.83689464]
[1763404711420,3.46,131.05,130.92,22.04]
[1763404711622,3.51548132,131.0,130.97,0.05487991]
[1763404711822,3.46,131.0,130.88,37.79689464]
[1763404712018,3.51328631,131.0,130.97,0.05440882]
[1763404712426,0.05328631,131.0,130.97,0.05440882]
[1763404713725,3.46328631,131.0,130.97,0.05440882]
[1763404714227,0.05328631,131.0,130.97,0.05440882]
[1763404717420,39.12539244,131.16,130.98,1.52]
[1763404717626,3.41,131.13,130.95,41.58]
[1763404718433,0.04999017,131.05,131.03,0.05219004]
[1763404718738,3.46509822,131.05,131.03,0.0509712]
[1763404718925,3.46509822,131.05,130.91,41.56]
[1763404719236,3.41,131.05,130.91,41.56]
[1763404719638,3.41,131.11,130.91,64.47]
[1763404719823,0.05521504,131.02,131.0,0.0524498]
[1763404720024,0.05727028,131.02,131.0,0.0533841]
[1763404720222,3.41,131.09,131.0,0.0533841]
[1763404720432,1.32786416,131.21,130.97,41.58]
[1763404720433,3.41,131.14,130.97,79.37689464]
[1763404720621,3.41,131.14,131.02,6.875]
[1763404720934,3.41,131.14,130.98,62.0]
[1763404721137,3.41,131.14,131.01,6.8755]
[1763404721330,0.05474095,131.09,131.06,0.05204908]
[1763404721530,0.05474095,131.09,131.06,0.05730072]
[1763404722634,3.46474095,131.09,131.06,0.05730072]
[1763404722842,4.93,131.08,130.93,37.79689464]
[1763404723038,3.41,131.08,130.94,41.58]
[1763404723636,3.41,131.08,130.97,6.8777]
[1763404723834,0.05752301,131.04,131.01,0.05142205]
[1763404725740,3.46752301,131.04,131.01,0.05142205]
[1763404726139,0.05752301,131.04,131.01,0.05142205]
[1763404726549,0.05752301,131.04,130.8,13.7729]
[1763404726550,3.41,131.02,130.8,13.7729]
[1763404726745,3.41,131.02,130.89,6.8817]
[1763404727137,3.41,131.02,130.88,33.18]
[1763404727339,3.41,131.02,130.88,40.0626]
[1763404727646,0.05630489,130.96,130.94,0.05156005]
[1763404727849,0.05818941,130.96,130.94,0.05096538]
[1763404730856,3.41,130.95,130.86,8.55883253]
[1763404731039,3.41,130.95,130.83,141.73883253]
[1763404731244,3.41,130.95,130.86,8.55883253]
[1763404731644,3.41,130.95,130.83,133.18]
[1763404731938,3.41,130.95,130.88,0.05434745]
[1763404731939,0.05746984,130.9,130.88,0.05434745]
[1763404732145,0.0546585,130.9,130.88,0.05434745]
[1763404734860,3.4646585,130.9,130.88,0.05434745]
[1763404740246,3.41,130.89,130.81,41.48]
[1763404741257,0.0565952,130.86,130.84,0.04882858]
[1763404741458,3.41,130.85,130.81,41.48]
[1763404741661,3.4665952,130.86,130.81,41.48]
[1763404741860,0.0565952,130.86,130.83,6.885]
[1763404742062,3.41,130.9,130.81,50.03883253]
[1763404742957,3.41,130.9,130.81,41.48]
[1763404743159,0.05592386,130.87,130.84,0.04892209]
[1763404743459,3.47592386,130.87,130.84,0.04892209]
[1763404744162,0.05592386,130.87,130.84,0.04892209]
[1763404745564,3.42,130.91,130.84,8.60775462]
[1763404745953,3.42,130.95,130.87,8.55883253]
[1763404746758,0.05046312,130.92,130.9,8.60926069]
[1763404746954,0.05623186,130.92,130.9,8.60770462]
[1763404747767,3.42,130.99,130.9,8.60770462]
[1763404747965,3.42,130.99,130.9,8.55883253]
[1763404748465,3.42,130.99,130.88,8.55883253]
[1763404748668,0.05115752,130.95,130.92,0.05397191]
[1763404749567,3.47115752,130.95,130.92,0.05397191]
[1763404754465,0.05115752,130.95,130.92,0.05397191]
[1763404755769,3.47115752,130.95,130.92,0.05397191]
[1763404756765,0.05115752,130.95,130.92,0.05397191]
[1763404757162,3.47115752,130.95,130.92,0.05397191]
[1763404757365,0.05115752,130.95,130.92,0.05397191]
[1763404759772,3.30115752,130.95,130.92,0.05397191]
[1763404761865,0.05115752,130.95,130.92,0.05397191]
[1763404762171,0.05115752,130.95,130.92,8.61280444]
[1763404762369,3.25,131.01,130.92,8.61280444]
[1763404762574,3.25,131.01,130.95,8.55883253]
[1763404762771,3.25,131.04,130.95,8.55883253]
[1763404763173,3.25,131.11,130.98,8.55883253]
[1763404763380,3.25,131.08,130.98,8.55883253]
[1763404763578,3.25,131.05,131.03,0.0515478]
[1763404763777,3.30732422,131.05,131.03,0.05396977]
[1763404763976,0.05732422,131.05,131.03,0.05396977]
[1763404764174,3.30732422,131.05,131.03,0.05396977]
[1763404764877,4.82732422,131.05,130.95,8.55883253]
[1763404765074,3.25,131.04,130.95,8.55883253]
[1763404765778,3.25,131.09,130.98,8.55883253]
[1763404765984,3.30135225,131.05,131.02,0.05538922]
[1763404766182,3.30135225,131.05,131.02,0.0561958]
[1763404767586,0.05135225,131.05,131.02,0.0561958]
[1763404768281,3.30135225,131.05,131.02,0.0561958]
[1763404768889,0.05135225,131.05,131.02,0.0561958]
[1763404769389,3.30135225,131.05,131.02,0.0561958]
[1763404769592,0.05135225,131.05,131.02,8.61502833]
[1763404769892,3.25,131.13,131.02,8.61502833]
[1763404770091,3.25,131.13,131.05,8.55883253]
[1763404770280,6.94868869,131.19,131.05,8.55883253]
[1763404770484,8.55883253,131.2,131.05,8.55883253]
[1763404770485,3.25,131.18,131.08,15.43083253]
[1763404770692,3.25,131.18,131.08,8.55883253]
[1763404770887,3.25,131.18,131.11,8.55883253]
[1763404771185,0.05683984,131.14,131.12,0.05626385]
[1763404771388,3.25,131.18,131.12,0.05626385]
[1763404771585,3.25,131.24,131.12,0.05626385]
[1763404771783,3.25,131.24,131.14,8.55883253]
[1763404772392,3.25,131.24,131.18,0.05795101]
[1763404772393,0.05653983,131.2,131.18,0.05795101]
[1763404776494,3.29,131.29,131.19,10.07883253]
[1763404776695,6.94868869,131.39,131.22,8.55883253]
[1763404776896,3.29,131.36,131.22,8.55883253]
[1763404777096,3.29,131.36,131.25,8.55883253]
[1763404777498,3.33950504,131.32,131.29,0.05488965]
[1763404777797,3.34183207,131.32,131.29,0.05722497]
[1763404778596,3.29,131.3,131.2,20.48]
[1763404779190,3.29,131.3,131.22,8.55883253]
[1763404779395,0.04900572,131.27,131.25,0.05265042]
[1763404780598,3.33900572,131.27,131.25,0.05265042]
[1763404781098,3.33900572,131.27,131.19,41.26]
[1763404781099,3.29,131.26,131.19,41.26]
[1763404782101,3.29,131.23,131.21,0.05279271]
[1763404782401,0.05539914,131.24,131.21,0.05279271]
[1763404783594,3.29,131.3,131.21,0.05279271]
[1763404783795,3.29,131.3,131.21,6.8651]
[1763404784601,0.05276002,131.27,131.24,0.05599162]
[1763404788404,3.34276002,131.27,131.24,0.05599162]
[1763404789806,3.34276002,131.27,131.2,41.18]
[1763404790807,3.34276002,131.27,131.22,0.05543989]
[1763404795304,0.05276002,131.27,131.22,0.05543989]
[1763404796112,3.34276002,131.27,131.22,0.05543989]
[1763404798916,3.34276002,131.27,131.14,54.46508409]
[1763404799114,26.2,131.26,131.14,41.12]
[1763404799318,3.29,131.25,131.11,13.34508409]
[1763404799614,3.29,131.25,131.12,6.87]
[1763404799811,3.29,131.25,131.11,13.34508409]
[1763404800011,3.29,131.18,131.17,0.05606663]
[1763404800207,3.29,131.18,131.16,0.04936544]
[1763404800412,3.29,131.18,131.16,0.05396648]
[1763404800413,0.0484081,131.18,131.16,0.05396648]
[1763404800616,3.3384081,131.18,131.16,0.05396648]
[1763404801018,0.0484081,131.18,131.16,0.05396648]
[1763404801221,3.3384081,131.18,131.16,0.05396648]
[1763404801418,0.0484081,131.18,131.16,0.05396648]
[1763404801612,3.3384081,131.18,131.16,0.05396648]
[1763404801917,3.3384081,131.18,130.84,23.29047489]
[1763404801918,3.29,131.16,131.05,13.34508409]
[1763404802122,3.29,131.16,131.02,13.34508409]
[1763404802320,3.29,131.14,130.99,22.58851637]
[1763404802621,3.29,131.14,130.99,13.34508409]
[1763404802825,3.25,131.07,131.05,0.05633416]
[1763404803121,3.29982348,131.07,131.05,0.05807812]
[1763404803513,3.25,131.06,130.96,13.34508409]
[1763404803908,3.25,131.09,130.96,13.34508409]
[1763404804111,3.25,131.09,130.99,13.34508409]
[1763404804513,3.25,131.09,131.02,13.34508409]
[1763404804910,0.05039881,131.07,131.04,0.05199616]
[1763404805515,3.30039881,131.07,131.04,0.05199616]
[1763404806227,0.05039881,131.07,131.04,0.05199616]
[1763404807027,3.25,131.14,131.04,6.92599616]
[1763404807318,6.94868869,131.22,131.05,13.34508409]
[1763404807527,3.25,131.21,131.08,13.34508409]
[1763404808120,0.05438886,131.16,131.13,0.05462381]
[1763404808320,3.30438886,131.16,131.08,20.21698409]
[1763404808519,0.05820104,131.13,131.11,0.05119205]
[1763404808720,3.30820104,131.13,131.11,0.05119205]
[1763404808920,0.05820104,131.13,131.11,0.05119205]
[1763404809227,3.30820104,131.13,131.11,0.05119205]
[1763404810027,0.05820104,131.13,131.11,0.05119205]
[1763404811222,3.30820104,131.13,131.11,0.05119205]
[1763404811724,3.30820104,131.13,131.02,40.24508409]
[1763404812018,3.30820104,131.13,131.02,102.24508409]
[1763404812019,3.25,131.13,131.02,102.24508409]
[1763404812813,0.0573011,131.09,131.06,0.05580848]
[1763404813721,3.3073011,131.09,131.06,0.05580848]
[1763404813915,0.0573011,131.09,131.06,0.05580848]
[1763404814621,3.3073011,131.09,131.06,0.05580848]
[1763404814923,0.0573011,131.09,131.06,0.05580848]
[1763404815524,3.3073011,131.09,131.06,0.05580848]
[1763404818127,3.49,131.07,130.86,27.11268409]
[1763404818327,3.49,131.07,130.95,6.8788]
[1763404818518,3.49,131.07,130.92,13.34508409]
[1763404818830,3.49,131.07,130.9,54.48508409]
[1763404819027,0.05802358,131.0,130.97,0.05150265]
[1763404819231,3.49,130.99,130.97,0.05050527]
[1763404820329,3.54009031,131.0,130.97,0.05050527]
[1763404820522,0.05009031,131.0,130.97,0.05050527]
[1763404823438,3.54009031,131.0,130.97,0.05050527]
[1763404824727,26.54167633,131.0,130.97,0.05050527]
[1763404825036,3.54009031,131.0,130.97,0.05050527]
[1763404827432,26.9495474,131.0,130.97,0.05050527]
[1763404827636,3.49,130.99,130.97,0.05050527]
[1763404827837,3.49,130.99,130.9,54.48508409]
[1763404828036,3.49,130.99,130.9,41.14]
[1763404828845,0.05330088,130.96,130.93,0.05537096]
[1763404829436,3.54330088,130.96,130.93,0.05537096]
[1763404831934,3.54330088,130.96,130.87,6.883]
[1763404832135,3.49,130.96,130.87,6.883]
[1763404832538,3.49,130.96,130.89,6.8821]
[1763404832842,3.34,130.93,130.91,0.05815253]
[1763404833137,3.39752583,130.93,130.91,0.05328802]
[1763404834356,0.05752583,130.93,130.91,0.05328802]
[1763404835634,3.39752583,130.93,130.91,0.05328802]
[1763404837136,0.05752583,130.93,130.91,0.05328802]
[1763404837333,3.39752583,130.93,130.91,0.05328802]
[1763404843244,0.05752583,130.93,130.91,6.93428802]
[1763404844149,0.05752583,130.93,130.91,0.05328802]
[1763404845345,3.39752583,130.93,130.91,0.05328802]
[1763404847250,0.05752583,130.93,130.91,0.05328802]
[1763404848341,3.39752583,130.93,130.91,0.05328802]
[1763404850946,3.39752583,130.93,130.91,0.00328802]
[1763404851141,3.39752583,130.93,130.86,8.5639359]
[1763404851142,3.34,130.92,130.81,8.5639359]
[1763404852054,3.3931181,130.88,130.85,0.02128321]
[1763404852249,3.39180413,130.88,130.85,0.02128321]
[1763404855054,0.05180413,130.88,130.85,0.02128321]
[1763404856750,3.39180413,130.88,130.85,0.02128321]
[1763404861957,3.39180413,130.88,130.77,24.46]
[1763404862161,3.34,130.88,130.79,8.5639359]
[1763404862761,0.05527661,130.85,130.82,8.5639359]
[1763404863059,0.05233957,130.85,130.82,8.5639359]
[1763404863263,0.05233957,130.85,130.83,6.8853]
[1763404863657,0.05233957,130.85,130.82,8.5639359]
[1763404863961,0.05233957,130.85,130.79,8.5639359]
[1763404864265,0.0544251,130.83,130.79,8.5639359]
[1763404864760,3.5144251,130.83,130.75,91.62]
[1763404864951,0.05696035,130.8,130.75,91.62]
[1763404865146,0.05696035,130.8,130.76,6.889]
[1763404865352,0.05696035,130.8,130.75,91.62]
[1763404865353,3.51696035,130.8,130.75,91.62]
[1763404866047,0.05696035,130.8,130.75,91.62]
[1763404866248,0.05696035,130.8,130.76,8.5639359]
[1763404866751,0.05696035,130.8,130.78,6.8878]
[1763404866948,0.05696035,130.8,130.76,8.5639359]
[1763404867954,0.05696035,130.8,130.78,6.8879]
[1763404868155,0.05696035,130.8,130.76,8.5639359]
[1763404869868,0.05696035,130.8,130.78,6.8879]
[1763404870067,0.05696035,130.8,130.79,41.1]
[1763404870271,3.46,130.87,130.79,49.6639359]
[1763404870459,3.46,130.87,130.8,6.8869]
[1763404870665,3.46,130.87,130.79,49.6639359]
[1763404871058,3.46,130.87,130.77,8.5639359]
[1763404871264,0.05780004,130.83,130.81,0.05352332]
[1763404871465,0.04904457,130.83,130.81,0.05238645]
[1763404873278,3.50904457,130.83,130.81,0.05238645]
[1763404873466,3.46,130.81,130.71,8.5639359]
[1763404873669,3.46,130.81,130.72,9.92]
[1763404874368,0.04864818,130.78,130.72,9.92]
[1763404874967,0.04864818,130.78,130.74,6.8901]
[1763404875266,0.04864818,130.78,130.72,9.92]
[1763404875478,0.04864818,130.78,130.75,6.8895]
[1763404876060,0.04864818,130.78,130.76,6.8889]
[1763404876672,0.04864818,130.78,130.74,8.5639359]
[1763404876970,0.04864818,130.78,130.76,6.889]
[1763404877474,0.04864818,130.78,130.74,8.5639359]